Cogmind - Beta 14 @@@ ROGUE MODE // 2024.10.20 @ 21:55:25 Player: Chemicalcaffe Result: Destroyed by H-55 Commando with Gauss Rifle Performance ------------- Evolutions (0) 0 Regions Visited (3) 600 Robots Destroyed (9) 45 Value Destroyed (260) 260 Prototype IDs (23) 460 Alien Tech Used (0) 0 Bonus (300) 300 TOTAL SCORE: 1665 Bonus ------- Aligned with FarCom 300 Cogmind --------- Core Integrity 0/250 Matter 294/300 Energy 125/125 System Corruption 0% Temperature Cool (12) Movement Treading (320) Ox2 Location -10/Exiles Parts ------- > --- POWER (1) -------- Light Ion Engine > --- PROPULSION (2) --- Light Treads Light Treads > --- UTILITY (2) ------ Huge Storage Unit Cloak of Protection > --- WEAPON (2) ------- Small Laser > --- INVENTORY (25) --- Light Ion Engine Aluminum Leg Aluminum Leg Aluminum Leg Aluminum Leg Aluminum Leg Heat Sink Small Storage Unit Medium Storage Unit Utility Shielding Small Laser Peak State ------------ > --- POWER ------------ Light Ion Engine > --- PROPULSION ------- Light Treads Light Treads > --- UTILITY ---------- Huge Storage Unit Cloak of Protection > --- WEAPON ----------- Small Laser Light Assault Rifle > --- INVENTORY -------- Light Ion Engine Aluminum Leg Aluminum Leg Aluminum Leg Aluminum Leg Aluminum Leg Heat Sink Small Storage Unit Medium Storage Unit Utility Shielding Small Laser [Rating: 15] Favorites ----------- Power Light Ion Engine Engine Light Ion Engine Propulsion Light Treads Treads Light Treads Utility Huge Storage Unit Device Cloak of Protection Storage Huge Storage Unit Protection Utility Shielding Weapon Light Assault Rifle Energy Gun Small Laser Ballistic Gun Light Assault Rifle Build | -11 -10 -10 -10 ------- Run | Yrd Mat Min Exi Slots Evolved . | . . . . Power . | . . . . Propulsion . | . . . . Utility . | . . . . Weapon . | . . . . Parts Attached 11 | 4 5 1 1 Power 2 | 1 1 . . Engine 2 | 1 1 . . Core . | . . . . Reactor . | . . . . Propulsion 2 | 2 . . . Treads 2 | 2 . . . Leg . | . . . . Wheel . | . . . . Hover . | . . . . Flight . | . . . . Utility 4 | 1 2 . 1 Device 1 | . . . 1 Storage 2 | 1 1 . . Processor . | . . . . Hackware . | . . . . Protection 1 | . 1 . . Artifact . | . . . . Weapon 3 | . 2 1 . Energy Gun 1 | . . 1 . Energy Cannon . | . . . . Ballistic Gun 2 | . 2 . . Ballistic Cannon . | . . . . Launcher . | . . . . Special Weapon . | . . . . Impact Weapon . | . . . . Slashing Weapon . | . . . . Piercing Weapon . | . . . . Special Melee Weapon . | . . . . Unidentified Prototypes 1 | . . . 1 Parts Lost 3 | . 1 1 1 Power 1 | . 1 . . Propulsion . | . . . . Utility . | . . . . Weapon 2 | . . 1 1 Highest Loss Streak 1 | . 1 1 1 To Critical Strikes . | . . . . Average Slot Usage (%) 98 | . 92 99 100 Engine 13 | . 13 14 14 Treads 28 | . 28 28 28 Device 2 | . . . 3 Storage 14 | . 14 14 14 Protection 11 | . 11 14 10 Energy Gun 10 | . . 13 14 Ballistic Gun 16 | . 23 14 14 Peak Build Rating 15 | 4 7 8 15 Average Rating 8 | 3 6 7 9 On Entrance 4 | . 4 7 8 Naked Turns . | . . . . Heaviest Build 93 | 8 87 87 93 Greatest Support 40 | 40 40 40 40 Greatest Overweight (x) 2 | . 2 2 2 Average Overweight (x) 1 | . 1 2 2 Largest Inventory Capacity 25 | 8 25 25 25 Average Capacity 23 | 7 20 25 25 Most Carried 11 | 8 9 10 11 Average Carried 9 | 5 7 9 10 Final Capacity 25 | 8 25 25 25 Final Carried 11 | 8 9 10 11 Class Distribution -------------------- 100% | Mutant Dominant Class ---------------- Mutant | -10/Materials Mutant | -10/Mines Mutant | -10/Exiles Resources | -11 -10 -10 -10 ----------- Run | Yrd Mat Min Exi Matter Collected 372 | 170 177 25 . Remotely . | . . . . Salvage Created 289 | . 204 85 . Parts 13 | . 9 4 . Haulers Intercepted . | . . . . Recyclers Shooed . | . . . . Parts Field Recycled . | . . . . Retrieved Matter . | . . . . Parts Self-Destructed . | . . . . Prevented . | . . . . Kills | -11 -10 -10 -10 ------- Run | Yrd Mat Min Exi Combat Hostiles Destroyed 9 | . 7 2 . Guns 9 | . 7 2 . Classes Destroyed 2 | . 2 . . Swarmer 3 | . 3 . . Grunt 6 | . 4 2 . Best Kill Streak 3 | . 3 2 . Combat Bots Only 3 | . 3 2 . Max Kills in Single Turn 1 | . 1 1 . Gunslinging . | . . . . Exploded . | . . . . Melee . | . . . . Uniques/NPCs Destroyed . | . . . . Combat | -11 -10 -10 -10 -------- Run | Yrd Mat Min Exi Hostile Shots Fired 105 | . 57 34 14 Missed 32 | . 15 10 7 Damage Taken 894 | . 454 336 104 Core 267 | . 146 99 22 Absorbed by Shields . | . . . . Redirected to Shielding 16 | . 11 5 . Core Remaining (%) 100 | 100 . . . Volleys Fired 40 | . 23 15 2 Largest 2 | . 2 2 2 Hottest 60 | . 40 60 60 Shots Fired 74 | . 46 25 3 Gun 74 | . 46 25 3 Cannon . | . . . . Launcher . | . . . . Special . | . . . . Kinetic 62 | . 46 15 1 Thermal 12 | . . 10 2 Explosive . | . . . . Electromagnetic . | . . . . Robot Hit Streak 6 | . 5 6 1 Robot Miss Streak 3 | . 3 2 2 Penetration Max . | . . . . Secondary Targets 2 | . 2 . . Max Gunslinging Chain 1 | . 1 . . Shots Hit Robots 41 | . 26 14 1 Core Hits 20 | . 15 5 . Critical Kills . | . . . . Critical Parts Destroyed 2 | . 1 1 . Critical Strikes 2 | . 1 1 . Destroy 2 | . 1 1 . Melee Attacks . | . . . . Impact . | . . . . Slashing . | . . . . Piercing . | . . . . Sneak Attacks . | . . . . Combat Hostiles . | . . . . Follow-up Attacks . | . . . . Damage Inflicted 429 | . 277 146 6 Guns 429 | . 277 146 6 Cannons . | . . . . Explosions . | . . . . Melee . | . . . . Ramming . | . . . . Kinetic 341 | . 277 58 6 Thermal 88 | . . 88 . Explosive . | . . . . Electromagnetic . | . . . . Impact . | . . . . Slashing . | . . . . Piercing . | . . . . Highest Corruption . | . . . . Average Corruption . | . . . . Corruption Purged . | . . . . Corruption Blocked . | . . . . Overload Shots . | . . . . Overflow Damage . | . . . . Projectiles . | . . . . Explosions . | . . . . Melee . | . . . . Knockbacks . | . . . . Impact . | . . . . Kinetic . | . . . . Secondary . | . . . . Self-Inflicted Damage . | . . . . Shots . | . . . . Rammed . | . . . . Targets Rammed . | . . . . Kicked . | . . . . Crushed . | . . . . Highest Temperature 121 | . 30 121 26 Average Temperature 43 | . 11 63 15 Received Heat Transfer 435 | . 204 219 12 Siege Activations . | . . . . Robots Corrupted . | . . . . Combat Hostiles . | . . . . Parts Fried . | . . . . Impact Corruptions . | . . . . Robots Melted . | . . . . Combat Hostiles . | . . . . Parts Melted . | . . . . Heat Transferred 200 | . . 200 . Parts Sabotaged . | . . . . Parts Stolen . | . . . . Parts Stripped . | . . . . Power Chain Reactions . | . . . . Alert | -11 -10 -10 -10 ------- Run | Yrd Mat Min Exi Peak Influence 163 | . 163 118 . Initial 63 | . . 63 . Average 68 | . 58 110 . Maximum Alert Level . | . . . . Low Security (%) 100 | 100 100 100 . Level 1 . | . . . . Level 2 . | . . . . Level 3 . | . . . . Level 4 . | . . . . Level 5 . | . . . . High Security . | . . . . Max Security . | . . . . Squads Dispatched 1 | . 1 . . Investigation . | . . . . Extermination . | . . . . Reinforcement 1 | . 1 . . Assault . | . . . . Garrison . | . . . . Intercept . | . . . . Searches Triggered . | . . . . Construction Impeded . | . . . . Haulers Reinforced . | . . . . Active Scanning Responses . | . . . . Cargo Convoy Interrupts . | . . . . Stealth | -11 -10 -10 -10 --------- Run | Yrd Mat Min Exi Distress Signals 1 | . 1 . . Communications Jammed . | . . . . Distress Signals . | . . . . Times Spotted 18 | . 11 2 5 Peak Tracking Total 6 | . 3 2 6 Tactical Retreats . | . . . . Traps | -11 -10 -10 -10 ------- Run | Yrd Mat Min Exi Traps Triggered . | . . . . Indirectly . | . . . . Trap Hack Attempts . | . . . . Triggered . | . . . . Disarmed . | . . . . Reprogrammed . | . . . . Reused . | . . . . Traps Extracted . | . . . . Installed . | . . . . Triggered . | . . . . Machines | -11 -10 -10 -10 ---------- Run | Yrd Mat Min Exi Machines Disabled 1 | . 1 . . Max in Single Turn 1 | . 1 . . Machines Repaired . | . . . . Machines Dismantled . | . . . . Machines Sabotaged . | . . . . Overloaded Fab Kills . | . . . . Hacking | -11 -10 -10 -10 --------- Run | Yrd Mat Min Exi Machines Accessed 5 | . 2 . 3 Terminals 1 | . 1 . . Fabricators . | . . . . Repair Stations . | . . . . Recycling Units 1 | . 1 . . Scanalyzers . | . . . . Garrison Access . | . . . . Total Hacks 28 | . 10 . 18 Successful 25 | . 7 . 18 Failed 3 | . 3 . . Catastrophic 1 | . 1 . . Database Lockouts . | . . . . Manual 3 | . 1 . 2 Terminals 4 | . 4 . . Fabricators . | . . . . Repair Stations . | . . . . Recycling Units 6 | . 6 . . Scanalyzers . | . . . . Garrison Access . | . . . . Terminal Hacks 20 | . 2 . 18 Record 19 | . 2 . 17 Derelict Proto ID Bank 1 | . . . 1 Fabricator Hacks . | . . . . Repair Station Hacks . | . . . . Recycling Unit Hacks 5 | . 5 . . Recycle Component 2 | . 2 . . Process 1 | . 1 . . Report Inventory 1 | . 1 . . Retrieve Matter 1 | . 1 . . Scanalyzer . | . . . . Garrison Access Hacks . | . . . . Unauthorized Hacks . | . . . . Terminals . | . . . . Fabricators . | . . . . Repair Stations . | . . . . Recycling Units . | . . . . Scanalyzers . | . . . . Garrison Access . | . . . . Data Cores Recovered . | . . . . Used . | . . . . Hacking Detections 1 | . 1 . . Full Trace Events 1 | . 1 . . Feedback Events . | . . . . Feedback Blocked . | . . . . Robot Schematics Acquired . | . . . . Robots Built . | . . . . Authchips . | . . . . Time . | . . . . Total Robot Build Rating . | . . . . Part Schematics Acquired . | . . . . Parts Built . | . . . . Authchips . | . . . . Time . | . . . . Total Part Build Rating . | . . . . Parts Repaired . | . . . . Time . | . . . . Parts Recycled 2 | . 2 . . Recycled Matter 30 | . 30 . . Retrieved Matter 30 | . 30 . . Retrieved Components . | . . . . Parts Scanalyzed . | . . . . Part Schematics Acquired . | . . . . Parts Damaged . | . . . . Bothacking | -11 -10 -10 -10 ------------ Run | Yrd Mat Min Exi Used RIF Installer . | . . . . Robots Hacked . | . . . . Non-combat . | . . . . Combat . | . . . . Robot Hacks Applied . | . . . . Relay Couplers Released . | . . . . Fabnet Peak Effective % . | . . . . Robots Rewired . | . . . . Allies Hacked . | . . . . Hacks Repelled . | . . . . Allies | -11 -10 -10 -10 -------- Run | Yrd Mat Min Exi Total Allies . | . . . . Largest Group . | . . . . Highest-Rated Group . | . . . . Highest-Rated Ally . | . . . . Total Orders . | . . . . Ally Attacks . | . . . . Total Damage . | . . . . Kills . | . . . . Allies Corrupted . | . . . . Allies Melted . | . . . . Intel | -11 -10 -10 -10 ------- Run | Yrd Mat Min Exi Robot Analysis Total . | . . . . Derelict Logs Recovered . | . . . . Drone Launches . | . . . . Drone Recoveries . | . . . . Exploration | -11 -10 -10 -10 ------------- Run | Yrd Mat Min Exi Turns Passed 1543 | 87 324 223 909 Spaces Moved 493 | 52 101 58 282 Core 10 | 10 . . . Treads 483 | 42 101 58 282 Legs . | . . . . Wheels . | . . . . Hover . | . . . . Flight . | . . . . Fastest Speed 50 | 50 160 320 320 Average Speed 285 | 138 247 320 320 Slowest Speed 320 | 160 320 320 320 Overloaded Moves . | . . . . Propulsion Burnouts . | . . . . Robots Hopped . | . . . . Cave-ins Triggered . | . . . . Exploration Rate (%) 23 | 4 16 14 61 Regions Visited 3 Branch Regions 2 Pre-discovered Areas . | . . . . Known Exits Taken . | . . . . Unknown Exits Taken 3 | 1 1 1 . Scrap Searched . | . . . . Spaces Dug . | . . . . Terrain Destroyed . | . . . . Melee . | . . . . Projectile . | . . . . AOE . | . . . . Terrain Rammed . | . . . . Walls Destroyed . | . . . . Machines Disabled . | . . . . Actions | -11 -10 -10 -10 --------- Run | Yrd Mat Min Exi Total 563 | 67 135 75 286 Wait . | . . . . Move 490 | 51 100 57 282 Hop . | . . . . Pick Up 22 | 12 7 2 1 Fast Attach . | . . . . Attach 9 | 4 4 1 . Detach . | . . . . Swap 2 | . 1 . 1 Drop . | . . . . Fire 40 | . 23 15 2 Melee . | . . . . Ram . | . . . . Kick . | . . . . Crush . | . . . . Escape Stasis . | . . . . Rewire . | . . . . Trap . | . . . . Miscellaneous . | . . . . Route ------- -11/Scrapyard -10/Materials -10/Mines (discovered 2 exits: [*Mat] / *Exi) -10/Exiles History --------- Turn | Location | Event 13 | -11/Scrapyard | Discovered new exit (range 14) 88 | -11/Scrapyard | Entered Materials 302 | -10/Materials | Build established: Mutant 307 | -10/Materials | Core integrity fell below 50% 328 | -10/Materials | Discovered new exit (range 11) 412 | -10/Materials | Entered Mines 421 | -10/Mines | Core integrity fell below 20% 471 | -10/Mines | Discovered new exit (range 12) 622 | -10/Mines | Deemed a non-threat by the Exiles lab entrance 622 | -10/Mines | Discovered new exit (range 5) 635 | -10/Mines | Entered Exiles 712 | -10/Exiles | Met 8R-AWN 770 | -10/Exiles | Met EX-HEX 978 | -10/Exiles | Met EX-DEC 1179 | -10/Exiles | Met EX-BIN 1237 | -10/Exiles | Aligned with FarCom system 1240 | -10/Exiles | Given EX-Vault access code 1320 | -10/Exiles | Opened EX-Vault 1336 | -10/Exiles | Found Prototype Device 1337 | -10/Exiles | Identified Cloak of Protection 1452 | -10/Exiles | Exiles lab attacked by MAIN.C 1544 | -10/Exiles | Destroyed by H-55 Commando with Gauss Rifle Last Messages --------------- HEX: 0b10 bots are notoriously weak to regular old fire, but I think it's time we started looking into something better than flamers as a delivery system. ** DEC: I'm with you on that! The Firepult is just the beginning. >>Record "DEC-099/Infernogeddon Engine" [REDACTED] ** HEX: No. EXILES: Incoming Unaware force detected on approach from Mines. Prepare for evacuation. EX-BIN seems to be suffering from a case of analysis paralysis. EXILES: Lab perimeter alert, evacuate immediately. EX-BIN: "Not cool, MAIN.C, I don't even have my SDF Cannon ready..." Penetrated by Slug. Slug penetrates Machine. Machine disabled. Lgt. Assault Rifle destroyed. Penetrated by Slug. Map ----- +----------------------------------------------------+ | ??????????#" #????????????????????????? | | ??????????#" ## #????????????????????????? | | ??????????#""""""## #?#########??????????????? | | ??????????##"###### #?#"""""""#??????????????? | | ?????????? "?????# #?#"""""""#??????????????? | | ?????????"""??????# #?#"""""""#??????????????? | | ?????????"""?????## ###"" """"#??????????????? | | ?????????????????#" """"#??????????????? | | ?????????????????#" """#??????????????? | | ?????????????????#" """#??????????????? | | ?????????????????#" """#??????????????? | | ??########???????#" """#??????????????? | | ??# """#???????#" """#??????????????? | | ??#"" """#???????## """""?????????????? | | ??#"" #????????# """##?????????????? | | ??#"" #????????#" "X" """"??????????????? | | ??#"" "#????????#" """ #??????????????? | | ??# ""#????????#" """""""""#??????????????? | | ??#"" ""#???????##" ###########??????????????? | | ??### ###??????##"" #????????????????????????? | | ??### ###?######"" #????????????????????????? | | ###X# #"###""""""" ##???????????????????????? | | """""" " "" ##???##########?????????? | | "" """ " #####"""""""""##???????? | | " " " """ """"##??????? | | @ "" " #??????? | | " """#??????? | | " "#??????? | | " "##?????? | | ""###???? | | """""" g """#???? | | ######""" "#???? | | ""##????#####""" g ##??? | | """##?????????##"" gg ##?# | | """##???????????#""" ### | | ""#???????????##"" h | | ########??####"""" | | ## ####""" | | """" # | | ## | | ##? | | " ##?? | | " "" """ ""#??? | | " ""## ##""" " " ""#" "##??? | | ""#### ######""" """##"""""""##???? | | """"##??# #????###""""###########????? | | """#???# #??????######??????????????? | | ""##???! ??????????????????????????? | | """##???#" ?????????????????????????? | | "" ##????#" ?????????????????????????? | +----------------------------------------------------+ Best States ------------- Heat Dissipation 25 Energy Generation 10 Energy Capacity 125 Matter Stores 300 Matter Capacity 300 Sight Range 16 Terrain Scan Density 10 Cloak Strength 5 Utility Shielding 33 Evasion (%) 50 Recoil Reduction 2 Item Schematics ----------------- None Robot Schematics ------------------ None Fabricated ------------ Nothing Alien Tech Used ----------------- None Achievements -------------- None Challenges ------------ None Game ------ Seed TrapNavigationTearclaws Manual? 0 Play Time 00:15:01 Cumulative 7.0 hours Start 2024.10.20 @ 21:28:14 End 2024.10.20 @ 21:55:25 Sessions 1 Manual Loads 0 Difficulty Rogue Special Mode None Game No. 10 Rogue 10 Adventurer 0 Explorer 0 Win Type - Total 0 Types 0/0/0/0/0/0/0/0/0 Lore% 7 Gallery% 10 Achievement% 10 Wizard Run 0 Options --------- Layout 1 ASCII 0 Keyboard 0 Movement Mouse Keybinds 0 Fullscreen 2 Font 24/Smallcaps Map View 50x35 Zoom Use 0% Tactical HUD 0 Map Filters NONE Filters NONE Steam 1 RUN: a8643b0a-add7-423d-a140-4b9b4f4f92bc